lending/lending_fUSD_20251021
["ID","MTS","AMOUNT","RATE_DAILY","PERIOD"]
[391985515,1761058233183,-151.0,0.00014891,2]
[391985517,1761058233192,-151.0,0.00014891,2]
[391985519,1761058233202,-151.0,0.00014891,2]
[391985521,1761058233213,-151.0,0.00014891,2]
[391985523,1761058233224,-151.0,0.00014891,2]
[391985525,1761058233233,-151.0,0.00014891,2]
[391985527,1761058233242,-151.0,0.00014891,2]
[391985530,1761058233265,-151.0,0.00014891,2]
[391985532,1761058233275,-151.0,0.00014891,2]
[391985534,1761058233285,-151.0,0.00014891,2]
[391985536,1761058233295,-151.0,0.00014891,2]
[391985538,1761058233305,-151.0,0.00014891,2]
[391985540,1761058233315,-151.0,0.00014891,2]
[391985542,1761058233325,-151.0,0.00014891,2]
[391985544,1761058233335,-151.0,0.00014891,2]
[391985546,1761058233344,-151.0,0.00014891,2]
[391985548,1761058233354,-151.0,0.00014891,2]
[391985550,1761058233364,-151.0,0.00014891,2]
[391985553,1761058233374,-151.0,0.00014891,2]
[391985555,1761058233384,-151.0,0.00014891,2]
[391985557,1761058233394,-151.0,0.00014891,2]
[391985559,1761058233404,-151.0,0.00014891,2]
[391985561,1761058233413,-160.0,0.00014891,2]
[391985563,1761058233423,-998.083,0.00014899,2]
[391985565,1761058233432,-406.96652865,0.000149,2]
[391985567,1761058233442,-3962.87488176,0.000149,2]
[391985569,1761058233452,-15595.88778208,0.000149,2]
[391985571,1761058233462,-157.53731326,0.000149,2]
[391985573,1761058233471,-496.57365086,0.000149,2]
[391985575,1761058233481,-1276.0441398,0.000149,2]
[391985577,1761058233491,-162.4220011,0.000149,2]
[391985579,1761058233502,-163.43439029,0.000149,2]
[391985581,1761058233513,-500.0,0.00014973,2]
[391985583,1761058233523,-500.75564392,0.00014973,2]
[391985585,1761058233533,-150.0,0.00014978,2]
[391985587,1761058233543,-166.80831811,0.00014986,2]
[391985589,1761058233554,-536.51,0.00014991,2]
[391985591,1761058233564,-150.0,0.00014991,2]
[391985593,1761058233574,-150.0,0.00014991,2]
[391985595,1761058233583,-150.0,0.00014991,2]
[391985597,1761058233594,-150.0,0.00014991,2]
[391985599,1761058233604,-150.0,0.00014991,2]
[391985601,1761058233614,-150.0,0.00014991,2]
[391985603,1761058233623,-150.0,0.00014991,2]
[391985605,1761058233633,-150.0,0.00014991,2]
[391985607,1761058233643,-154.21854172,0.00014991,2]
[391985610,1761058233652,-150.0,0.00014991,2]
[391985612,1761058233662,-500.0,0.00014991,2]
[391985614,1761058233673,-500.0,0.00014991,2]
[391985616,1761058233682,-150.0,0.00014991,2]
[391985618,1761058233691,-150.0,0.00014991,2]
[391985620,1761058233700,-300.0,0.00014991,2]
[391985622,1761058233709,-150.0,0.00014991,2]
[391985624,1761058233718,-150.0,0.00014991,2]
[391985626,1761058233727,-154.11383184,0.00014991,2]
[391985628,1761058233736,-150.0,0.00014991,2]
[391985630,1761058233746,-150.0,0.00014991,2]
[391985632,1761058233759,-150.0,0.00014991,2]
[391985634,1761058233769,-150.0,0.00014991,2]
[391985636,1761058233779,-150.0,0.00014991,2]
[391985638,1761058233793,-5729.00012094,0.00014999,2]
[391985640,1761058233803,-500.0,0.00014999,2]
[391985642,1761058233814,-500.0,0.00014999,2]
[391985644,1761058233824,-500.0,0.00014999,2]
[391985647,1761058233834,-323.00998445,0.00014999,2]
[391985649,1761058233844,-500.0,0.00014999,2]
[391985651,1761058233858,-500.0,0.00014999,2]
[391985653,1761058233868,-500.0,0.00014999,2]
[391985655,1761058233877,-500.0,0.00014999,2]
[391985657,1761058233887,-500.0,0.00014999,2]
[391985659,1761058233898,-500.0,0.00014999,2]
[391985661,1761058233908,-500.0,0.00014999,2]
[391985663,1761058233918,-503.68261355,0.00014999,2]
[391985665,1761058233929,-500.0,0.00014999,2]
[391985667,1761058233939,-150.0,0.00014999,2]
[391985669,1761058233949,-150.0,0.00014999,2]
[391985671,1761058233960,-150.0,0.00014999,2]
[391985673,1761058233970,-156.27667649,0.00014999,2]
[391985675,1761058233979,-150.0,0.00014999,2]
[391985677,1761058233989,-150.0,0.00014999,2]
[391985679,1761058233998,-150.0,0.00014999,2]
[391985681,1761058234011,-150.0,0.00014999,2]
[391985683,1761058234020,-150.73884076,0.00014999,2]
[391985685,1761058234030,-150.0,0.00014999,2]
[391985687,1761058234040,-151.05950604,0.00014999,2]
[391985689,1761058234051,-150.0,0.00014999,2]
[391985691,1761058234062,-150.0,0.00014999,2]
[391985694,1761058234072,-150.0,0.00014999,2]
[391985696,1761058234082,-205.07568247,0.00014999,2]
[391985722,1761058234325,-1973.07883645,0.00015,2]
[391986019,1761058238181,-163.88363178,0.00014973,2]
[391986020,1761058238200,-48789.65656822,0.00015,2]
[391986130,1761058239938,-500.0,0.00014973,2]
[391986131,1761058239953,-1200.57995969,0.00015,2]
[391986132,1761058239971,-3984.84396835,0.00015,2]
[391986133,1761058239987,-2459.16219917,0.00015,2]
[391986134,1761058240013,-5461.1455012,0.00015,2]
[391986135,1761058240031,-1088.9736,0.00015,2]
[391986136,1761058240048,-390.204,0.00015,2]
[391986137,1761058240064,-1649.19999974,0.00015,2]
[391986138,1761058240083,-4054.32002129,0.00015,2]
[391986139,1761058240099,-5466.75000009,0.00015,2]
[391986140,1761058240117,-12201.57386658,0.00015,2]
[391986141,1761058240131,-1730.48615334,0.00015,2]
[391986142,1761058240180,-1083.27366979,0.00015,2]
[391986143,1761058240195,-2981.511028,0.00015,2]
[391986144,1761058240295,-674.82664481,0.00015,2]
[391986145,1761058240316,-1414.09362655,0.00015,2]
[391986146,1761058240330,-757.70637345,0.00015,2]
[391986151,1761058241163,-14580.90796308,0.00015,2]
[391986152,1761058241174,-54221.19203869,0.00015,2]
[391986153,1761058241186,-4377.14237316,0.00015,2]
[391986154,1761058241197,-263414.04086521,0.00015,2]
[391986155,1761058241212,-286.09800003,0.00015,2]
[391986156,1761058244721,-500.0,0.00014999,2]
[391986157,1761058244731,-500.0,0.00014999,2]
[391986158,1761058244742,-500.0,0.00014999,2]
[391986159,1761058244753,-500.0,0.00014999,2]
[391986160,1761058244765,-562.05564902,0.00014999,2]
[391986161,1761058244775,-500.0,0.00014999,2]
[391986162,1761058244784,-23478.29876289,0.00015,2]
[391986163,1761058244796,-213225.51395495,0.00015,2]
[391986164,1761058244848,-842.26145612,0.00015,2]
[391986165,1761058245058,-92852.42675145,0.00015,2]
[391986187,1761058246438,-435.4082874,0.00015,2]
[391986188,1761058246473,-3904.81433828,0.00015,2]
[391986189,1761058246507,-992.84362381,0.00015,2]
[391986190,1761058246542,-603.31234776,0.00015,2]
[391986197,1761058292779,12421.0,0.00013,2]
[391986198,1761058325598,268.78051857,0.00034383,30]
[391986199,1761058325666,1000.0,0.00034383,30]
[391986200,1761058325738,250.0,0.00034383,30]
[391986201,1761058326332,1000.0,0.00034383,30]
[391986202,1761058326401,250.0,0.00034383,30]
[391986203,1761058327173,250.0,0.00034383,30]
[391986204,1761058327260,1000.0,0.00034383,30]
[391986205,1761058327588,250.0,0.00034383,30]
[391986206,1761058327779,1000.0,0.00034383,30]
[391986207,1761058328413,250.0,0.00034383,30]
[391986208,1761058328495,1000.0,0.00034383,30]
[391986209,1761058330652,1000.0,0.00034383,30]
[391986210,1761058331549,1000.0,0.00034383,30]
[391986211,1761058333129,1000.0,0.00034383,30]
[391986212,1761058333934,1000.0,0.00034383,30]
[391986213,1761058334608,1000.0,0.00034383,30]
[391986214,1761058335238,1000.0,0.00034383,30]
[391986215,1761058335486,500.0,0.00034383,30]
[391986216,1761058336240,500.0,0.00034383,30]
[391986217,1761058336895,500.0,0.00034383,30]
[391986218,1761058337588,500.0,0.00034383,30]
[391986219,1761058338213,500.0,0.00034383,30]
[391986220,1761058338512,250.0,0.00034383,30]
[391986221,1761058339129,250.0,0.00034383,30]
[391986223,1761058339790,250.0,0.00034383,30]
[391986224,1761058340483,250.0,0.00034383,30]
[391986225,1761058341102,250.0,0.00034383,30]
[391986226,1761058341753,250.0,0.00034383,30]
[391986227,1761058342411,250.0,0.00034383,30]
[391986228,1761058343040,250.0,0.00034383,30]
[391986229,1761058343112,155.0994958,0.00034383,30]
[391986230,1761058343739,250.0,0.00034383,30]
[391986231,1761058344384,250.0,0.00034383,30]
[391986232,1761058345017,250.0,0.00034383,30]
[391986237,1761058628182,6554.70532241,7.945e-05,2]
[391986238,1761058628211,4706.95635706,7.945e-05,2]
[391986239,1761058628236,4023.23868853,7.945e-05,2]
[391986240,1761058628432,984.05191852,0.00034384,30]
[391986241,1761058634668,186.42332341,0.00034384,30]
[391986242,1761058725844,1009.12704477,0.00034384,120]
[391986243,1761058767583,267.29,0.00030137,120]
[391986249,1761058867016,500.0,0.00010959,30]
[391986250,1761058867523,500.0,0.00010959,30]
[391986251,1761058868075,500.0,0.00010959,30]
[391986252,1761058868485,500.0,0.00010959,30]
[391986253,1761058868993,58.98049866,0.00010959,30]
[391986254,1761058869024,441.01950134,0.00010959,30]
[391986255,1761058869480,500.0,0.00010959,30]
[391986256,1761058870002,546.09537843,0.00010959,30]
[391986261,1761058927622,-596.25242774,0.00014603,2]
[391986262,1761058927662,-195.0,0.00014785,2]
[391986263,1761058927699,-166.66,0.0001487,2]
[391986264,1761058927734,-195.0,0.00014872,2]
[391986265,1761058927769,-300.0,0.00014899,2]
[391986266,1761058927805,-158.41504428,0.000149,2]
[391986267,1761058927841,-373.17010137,0.000149,2]
[391986268,1761058927877,-168.74884892,0.000149,2]
[391986269,1761058927913,-227.97457754,0.000149,2]
[391986270,1761058927947,-331.04910058,0.000149,2]
[391986271,1761058928293,-724.76370594,0.000149,2]
[391986272,1761058928314,-125.93238726,0.000149,2]
[391986273,1761058928329,-162.4220011,0.000149,2]
[391986274,1761058928339,-307.89803938,0.0001499,2]
[391986275,1761058928365,-195.0,0.0001499,2]
[391986276,1761058928384,-166.66,0.0001499,2]
[391986277,1761058928401,-195.0,0.0001499,2]
[391986278,1761058928419,-300.0,0.0001499,2]
[391986279,1761058928440,-158.41504428,0.0001499,2]
[391986280,1761058928453,-373.17010137,0.0001499,2]
[391986281,1761058928471,-168.74884892,0.0001499,2]
[391986282,1761058928496,-227.97457754,0.0001499,2]
[391986283,1761058928513,-331.04910058,0.0001499,2]
[391986284,1761058928607,-850.6960932,0.0001499,2]
[391986289,1761058943773,250.0,0.00034372,30]
[391986290,1761058944498,250.0,0.00034372,30]
[391986291,1761058945178,250.0,0.00034372,30]
[391986292,1761058945815,250.0,0.00034372,30]
[391986293,1761058946420,250.0,0.00034372,30]
[391986294,1761058947058,250.0,0.00034372,30]
[391986295,1761058947709,250.0,0.00034372,30]
[391986296,1761058948679,250.0,0.00034372,30]
[391986308,1761059149031,644.02992129,0.00034372,90]
[391986371,1761059432166,-250.0,0.00014874,2]
[391986374,1761059432176,-258.0,0.00014899,2]
[391986377,1761059432186,-150.0,0.00014899,2]
[391986380,1761059432196,-195.83582641,0.000149,2]
[391986384,1761059432207,-195.83582641,0.000149,2]
[391986387,1761059432218,-195.83582641,0.000149,2]
[391986391,1761059432228,-2127.51469817,0.000149,2]
[391986444,1761059436969,-10666.41299117,0.000149,2]
[391986445,1761059436979,-158.41504425,0.000149,2]
[391986446,1761059436989,-151.98305168,0.000149,2]
[391986447,1761059436999,-1919.78182419,0.000149,2]
[391986448,1761059437008,-567.1307288,0.000149,2]
[391986450,1761059437019,-220.69940038,0.000149,2]
[391986451,1761059437028,-694.1772,0.0001497,2]
[391986452,1761059437038,-163.88363178,0.00014973,2]
[391986453,1761059437049,-500.0,0.00014973,2]
[391986454,1761059437059,-160.5,0.0001499,2]
[391986455,1761059437068,-296.91727084,0.0001499,2]
[391986456,1761059437078,-5338.17183615,0.0001499,2]
[391986475,1761059438128,-986.15816385,0.0001499,2]
[391986476,1761059438140,-6324.33,0.0001499,2]
[391986477,1761059438149,-151.0,0.00014991,2]
[391986479,1761059438159,-151.0,0.00014991,2]
[391986480,1761059438169,-151.0,0.00014991,2]
[391986481,1761059438179,-151.0,0.00014991,2]
[391986482,1761059438188,-165.41541025,0.00014991,2]
[391986483,1761059438198,-500.0,0.00014998,2]
[391986484,1761059438209,-500.0,0.00014998,2]
[391986486,1761059438218,-630.26320585,0.00014998,2]
[391986487,1761059438228,-798.466,0.00014999,2]
[391986488,1761059438238,-500.0,0.00014999,2]
[391986489,1761059438248,-500.0,0.00014999,2]
[391986490,1761059438259,-500.0,0.00014999,2]
[391986491,1761059438271,-500.0,0.00014999,2]
[391986492,1761059438281,-500.0,0.00014999,2]
[391986494,1761059438291,-500.0,0.00014999,2]
[391986495,1761059438300,-500.0,0.00014999,2]
[391986496,1761059438310,-162.38966566,0.00014999,2]
[391986497,1761059438320,-15150.81206759,0.00014999,2]
[391986498,1761059438353,-26812.77785417,0.00014999,2]
[391986500,1761059438374,-7575.3780709,0.00014999,2]
[391986504,1761059438557,-2898.09,0.00014999,2]
[391986534,1761059440146,-10000.0,0.00014999,2]
[391986538,1761059440210,-401.46,0.00014999,2]
[391986541,1761059440221,-6721.5,0.00014999,2]
[391986542,1761059440268,-2248.8919995,0.00014999,2]
[391986547,1761059440512,-2252.4695,0.00014999,2]
[391986548,1761059440525,-11078.74113404,0.00014999,2]
[391986549,1761059440534,-34190.99996148,0.00015,2]
[391986615,1761059444192,-578254.49792792,0.00015,2]
[391986619,1761059444355,-1732472.54847583,0.00015,2]
[391986620,1761059444374,-884.98880439,0.00015,2]
[391986621,1761059444386,-145428.4946029,0.00015,2]
[391986625,1761059444550,-3913.14636622,0.00015,2]
[391986776,1761059446275,-1113.8,0.00015,2]
[391986795,1761059446378,-8050.60000001,0.00015,2]
[391986797,1761059446388,-2500.43882,0.00015,2]
[391986799,1761059446399,-331.09479117,0.00015,2]
[391986801,1761059446410,-1586.55733027,0.00015,2]
[391986803,1761059446421,-618.446248,0.00015,2]
[391986806,1761059446436,-2119.68967712,0.00015,2]
[391986810,1761059446468,-605.748278,0.00015,2]
[391986812,1761059446479,-348.38857622,0.00015,2]
[391986815,1761059446491,-1208.79075078,0.00015,2]
[391986817,1761059446502,-28288.86544278,0.00015,2]
[391986839,1761059446708,-2321.8,0.00015,2]
[391987388,1761059525611,600.0,0.00034373,30]
[391987389,1761059525693,1000.0,0.00034373,30]
[391987390,1761059526231,600.0,0.00034373,30]
[391987391,1761059526416,1000.0,0.00034373,30]
[391987392,1761059527077,1000.0,0.00034373,30]
[391987393,1761059527884,1000.0,0.00034373,30]
[391987394,1761059530279,322.6107,0.00034373,30]
[391987395,1761059535476,528.48193412,0.00034373,30]
[391987405,1761059766055,162.83608265,0.00014,2]
[391987410,1761059831336,362.30807014,0.00034373,30]
[391987411,1761059831707,274.52197464,0.00034373,30]
[391987419,1761059984134,151.93,7.853e-05,2]
[391987420,1761059984349,151.93,8.508e-05,2]
[391987421,1761059984584,151.93,9.162e-05,2]
[391987422,1761059984801,151.93,9.817e-05,2]
[391987423,1761059985025,151.93,0.00010471,2]
[391987424,1761059985292,151.93,0.00011125,2]
[391987425,1761059985743,151.93,0.0001178,2]
[391987426,1761059985954,151.93,0.00012434,2]
[391987427,1761059986176,151.93,0.00013089,2]
[391987428,1761059986595,151.93,0.00013743,2]
[391987457,1761060135257,1000.0,0.00034335,30]
[391987458,1761060136017,1000.0,0.00034335,30]
[391987459,1761060136652,1000.0,0.00034335,30]
[391987460,1761060137722,1000.0,0.00034335,30]
[391987482,1761060348380,20567.4611776,0.00034335,120]
[391987484,1761060363482,257.35511126,8e-05,2]
[391987493,1761060427985,1000.0,0.00034335,30]
[391987495,1761060428716,1000.0,0.00034335,30]
[391987496,1761060429353,1000.0,0.00034335,30]
[391987497,1761060430114,1000.0,0.00034335,30]
[391987498,1761060430640,1000.0,0.00034335,30]
[391987499,1761060431542,1000.0,0.00034335,30]
[391987502,1761060467920,446.13112937,0.00034335,120]
[391987573,1761060632377,-1325.32,0.00014103,2]
[391987574,1761060632388,-2500.0,0.00014122,2]
[391987575,1761060632398,-457.21251678,0.0001414,2]
[391987576,1761060632409,-557.61522968,0.0001414,2]
[391987577,1761060632419,-250.0,0.00014178,2]
[391987578,1761060632428,-250.0,0.00014207,2]
[391987579,1761060632438,-150.0,0.00014236,2]
[391987580,1761060632451,-150.0,0.00014304,2]
[391987581,1761060632461,-151.93,0.00014398,2]
[391987582,1761060632470,-277.35679052,0.00014716,2]
[391987583,1761060632480,-578.48099,0.0001485,2]
[391987584,1761060632490,-151.0,0.00014899,2]
[391987585,1761060632500,-375.2885439,0.000149,2]
[391987586,1761060632510,-220.69940038,0.000149,2]
[391987587,1761060632522,-378.08715252,0.000149,2]
[391987588,1761060632532,-167.55646164,0.00014973,2]
[391987589,1761060632542,-500.0,0.00014973,2]
[391987590,1761060632552,-578.481,0.0001498,2]
[391987591,1761060632562,-160.5,0.0001499,2]
[391987592,1761060632573,-150.0,0.00014998,2]
[391987593,1761060632583,-212.60227385,0.00014999,2]
[391987594,1761060632593,-500.0,0.00014999,2]
[391987595,1761060632604,-500.0,0.00014999,2]
[391987596,1761060632614,-238.02632059,0.00014999,2]
[391987597,1761060632624,-500.0,0.00014999,2]
[391987598,1761060632639,-500.0,0.00014999,2]
[391987599,1761060632651,-500.0,0.00014999,2]
[391987600,1761060632661,-372.99573189,0.00014999,2]
[391987601,1761060632671,-500.0,0.00014999,2]
[391987602,1761060632682,-500.0,0.00014999,2]
[391987603,1761060632693,-500.0,0.00014999,2]
[391987604,1761060632702,-500.0,0.00014999,2]
[391987605,1761060632712,-500.0,0.00014999,2]
[391987606,1761060632722,-318.05000016,0.00014999,2]
[391987607,1761060632731,-792.635,0.00014999,2]
[391987608,1761060632740,-500.0,0.00014999,2]
[391987609,1761060632749,-591.92,0.00014999,2]
[391987610,1761060632761,-500.0,0.00014999,2]
[391987611,1761060632772,-3108.84475424,0.00014999,2]
[391987612,1761060632782,-71818.85063147,0.00015,2]
[391987615,1761060632821,-56724.47140558,0.00015,2]
[391987619,1761060632846,-908.74756444,0.00015,2]
[391987622,1761060632867,-12557.53943359,0.00015,2]
[391987624,1761060632879,-11313.9933952,0.00015,2]
[391987628,1761060632915,-10974.84125448,0.00015,2]
[391987629,1761060632928,-10938.94207881,0.00015,2]
[391987630,1761060632941,-9036.76846419,0.00015,2]
[391987631,1761060632954,-1394.05501122,0.00015,2]
[391987634,1761060638329,-682.28557566,0.00015,2]
[391987635,1761060638482,-22926.30361733,0.00015,2]
[391987636,1761060638497,-669.60084203,0.00015,2]
[391987637,1761060638595,-485.62768952,0.00015,2]
[391987639,1761060638610,-5679.072,0.00015,2]
[391987640,1761060638625,-1118731.05177342,0.00015,2]
[391987815,1761060640510,-50948.1726161,0.00015,2]
[391987822,1761060640569,-1223.30209994,0.00015,2]
[391987824,1761060640580,-3392.9829568,0.00015,2]
[391987940,1761060642842,-1990.08,0.00015,2]
[391987941,1761060642894,-6208.39308682,0.00015,2]
[391987972,1761060643474,-55476.92363419,0.00015,2]
[391987975,1761060643486,-953.8169791,0.00015,2]
[391987977,1761060643703,-1240.0779603,0.00015,2]
[391987978,1761060643715,-424.394407,0.00015,2]
[391987979,1761060643726,-820.89659541,0.00015,2]
[391987980,1761060643738,-825.20085,0.00015,2]
[391987981,1761060643751,-1163.61178274,0.00015,2]
[391987998,1761060646470,-4749.78,0.00015,2]
[391988000,1761060646483,-658.1684196,0.00015,2]
[391988001,1761060646493,-1533.16416282,0.00015,2]
[391988002,1761060646504,-7114.77475199,0.00015,2]
[391988003,1761060646515,-85591.65868119,0.00015,2]
[391988006,1761060647249,-41728.55029008,0.00015,2]
[391988007,1761060647260,-4799.19809755,0.00015,2]
[391988008,1761060647282,-1215.29304,0.00015,2]
[391988013,1761060647366,-776.19216346,0.00015,2]
[391988021,1761060731071,520.0,0.00034338,30]
[391988022,1761060731560,1000.0,0.00034338,30]
[391988023,1761060732201,1000.0,0.00034338,30]
[391988024,1761060732825,1000.0,0.00034338,30]
[391988025,1761060733462,1000.0,0.00034338,30]
[391988026,1761060734114,1000.0,0.00034338,30]
[391988027,1761060734748,1000.0,0.00034338,30]
[391988028,1761060735738,1000.0,0.00034338,30]
[391988029,1761060736392,1000.0,0.00034338,30]
[391988030,1761060736999,761.92270224,0.00034338,30]
[391988031,1761060737077,300.0,0.00034338,30]
[391988032,1761060737706,300.0,0.00034338,30]
[391988034,1761060854094,-153.21614027,0.000142,7]
[391988039,1761061033549,179.38203873,0.00034339,30]
[391988043,1761061077989,350.32,0.00013699,2]
[391988050,1761061282951,182.23101693,0.00013365,2]
[391988051,1761061284600,387.62853951,0.00013564,2]
[391988054,1761061329013,3725.753314,7.945e-05,2]
[391988056,1761061361126,166.66,0.00013699,2]
[391988057,1761061361343,166.66,0.00013918,2]
[391988058,1761061386674,2119.0,0.0003433,30]
[391988059,1761061404910,200.0,0.00013807,2]
[391988063,1761061454536,-153.9344702,0.00014019,2]
[391988067,1761061521014,2818.45,0.00013981,2]
[391988069,1761061581967,10000.0,0.000161,10]
[391988072,1761061619663,8512.88512023,0.000161,10]
[391988073,1761061651224,50000.0,0.00034331,40]
[391988074,1761061656872,50000.0,0.00034331,34]
[391988075,1761061660132,50000.0,0.00034331,35]
[391988076,1761061663255,50000.0,0.00034331,36]
[391988079,1761061691998,876.33,0.00013953,2]
[391988080,1761061698339,30000.0,0.00034331,40]
[391988084,1761061765630,-96.78385973,0.000142,7]
[391988093,1761061831662,-4.0555298,0.00014019,2]
[391988094,1761061831672,-541.2544702,0.00014072,2]
[391988095,1761061831683,-456.7858882,0.00014072,2]
[391988096,1761061831718,-1501.9596416,0.00014072,2]
[391988097,1761061831727,-1134.06,0.00014125,2]
[391988098,1761061831737,-166.66,0.00014137,2]
[391988099,1761061831746,-300.0,0.00014242,2]
[391988100,1761061831756,-2500.0,0.00014243,2]
[391988101,1761061831765,-2500.0,0.00014243,2]
[391988102,1761061831776,-166.66,0.00014357,2]
[391988103,1761061831785,-166.66,0.00014576,2]
[391988104,1761061831794,-547.0,0.000147,2]
[391988105,1761061831804,-166.66,0.00014796,2]
[391988106,1761061831813,-157.99,0.00014798,2]
[391988107,1761061831822,-678.1677,0.0001485,2]
[391988108,1761061831831,-300.0,0.00014897,2]
[391988109,1761061831841,-2378.62219086,0.00014899,2]
[391988110,1761061831850,-300.0,0.00014899,2]
[391988111,1761061831859,-393.77115966,0.000149,2]
[391988112,1761061831868,-3133.35153649,0.000149,2]
[391988113,1761061831878,-159.75328214,0.000149,2]
[391988114,1761061831887,-1898.855384,0.000149,2]
[391988115,1761061831896,-3155.69313487,0.000149,2]
[391988116,1761061831906,-666.0,0.00014947,3]
[391988117,1761061831915,-150.0,0.00014972,2]
[391988118,1761061831924,-500.0,0.00014973,2]
[391988119,1761061831934,-500.0,0.00014973,2]
[391988120,1761061831943,-500.0,0.00014973,2]
[391988121,1761061831952,-500.0,0.00014973,2]
[391988122,1761061831961,-500.37487873,0.00014973,2]
[391988123,1761061831971,-500.0,0.00014973,2]
[391988124,1761061831979,-501.18091884,0.00014973,2]
[391988125,1761061831989,-500.0,0.00014973,2]
[391988127,1761061831999,-500.0,0.00014973,2]
[391988128,1761061832008,-331.51333905,0.00014973,2]
[391988131,1761061832018,-500.0,0.00014973,2]
[391988132,1761061832028,-3116.05064467,0.00014973,2]
[391988133,1761061832038,-3123.63033098,0.00014973,2]
[391988134,1761061832047,-678.16771,0.0001498,2]
[391988135,1761061832056,-630.89,0.00014991,2]
[391988136,1761061832066,-837.675,0.00014991,2]
[391988137,1761061832076,-151.0,0.00014991,2]
[391988138,1761061832085,-151.0,0.00014991,2]
[391988139,1761061832095,-151.0,0.00014991,2]
[391988140,1761061832105,-151.0,0.00014991,2]
[391988141,1761061832115,-151.0,0.00014991,2]
[391988142,1761061832124,-151.0,0.00014991,2]
[391988143,1761061832133,-151.0,0.00014991,2]
[391988145,1761061832143,-151.0,0.00014991,2]
[391988147,1761061832152,-151.0,0.00014991,2]
[391988148,1761061832161,-151.0,0.00014991,2]
[391988151,1761061832173,-151.0,0.00014991,2]
[391988152,1761061832182,-151.0,0.00014991,2]
[391988154,1761061832191,-151.0,0.00014991,2]
[391988156,1761061832201,-151.0,0.00014991,2]
[391988157,1761061832210,-151.0,0.00014991,2]
[391988158,1761061832219,-151.0,0.00014991,2]
[391988159,1761061832228,-151.0,0.00014991,2]
[391988160,1761061832239,-151.0,0.00014991,2]
[391988161,1761061832249,-151.0,0.00014991,2]
[391988162,1761061832258,-151.0,0.00014991,2]
[391988163,1761061832268,-151.0,0.00014991,2]
[391988164,1761061832278,-200.63830546,0.00014991,2]
[391988165,1761061832287,-151.0,0.00014991,2]
[391988166,1761061832298,-151.0,0.00014991,2]
[391988167,1761061832307,-151.0,0.00014991,2]
[391988168,1761061832317,-151.0,0.00014991,2]
[391988169,1761061832328,-151.0,0.00014991,2]
[391988170,1761061832339,-151.0,0.00014991,2]
[391988171,1761061832349,-151.0,0.00014991,2]
[391988172,1761061832359,-161.17841082,0.00014991,2]
[391988173,1761061832368,-500.0,0.00014999,2]
[391988174,1761061832379,-221.3389781,0.00014999,2]
[391988175,1761061832388,-238.08642297,0.00014999,2]
[391988176,1761061832398,-1001.8282,0.00014999,2]
[391988177,1761061832407,-500.0,0.00014999,2]
[391988178,1761061832416,-500.0,0.00014999,2]
[391988179,1761061832426,-467.23688526,0.00014999,2]
[391988180,1761061832435,-300.0,0.00014999,2]
[391988181,1761061832444,-500.0,0.00014999,2]
[391988182,1761061832454,-500.0,0.00014999,2]